[Event "Titled Tuesday Blitz May 4 2021"]
[White "Wisniowski, Natalie"]
[Black "Plotnikov, Pavel"]
[WhiteFideId "30929261"]
[BlackFideId "4170342"]
[WhiteElo "1702"]
[BlackElo "2298"]
[Result "0-1"]
[Round "03"]
[TimeControl "180+1"]
[Date "2021.05.04"]
[WhiteClock "0:00:34"]
[BlackClock "0:01:40"]

1. d4 {[%clk 0:03:00]}  Nf6 {[%clk 0:02:56]} 2. c4 {[%clk 0:02:59]}  g6 {[%clk 0:02:56]} 3. Nf3 {[%clk 0:02:58]}  Bg7 {[%clk 0:02:57]} 4. g3 {[%clk 0:02:58]}  O-O {[%clk 0:02:58]} 5. Bg2 {[%clk 0:02:59]}  d6 {[%clk 0:02:58]} 6. O-O {[%clk 0:02:59]}  Nbd7 {[%clk 0:02:59]} 7. Nc3 {[%clk 0:03:00]}  e5 {[%clk 0:02:59]} 8. e4 {[%clk 0:03:00]}  Qe7 {[%clk 0:02:59]} 9. Be3 {[%clk 0:03:00]}  b6 {[%clk 0:03:00]} 10. Qc2 {[%clk 0:02:59]}  Bb7 {[%clk 0:03:00]} 11. d5 {[%clk 0:03:00]}  a5 {[%clk 0:02:59]} 12. Nb5 {[%clk 0:02:56]}  Nc5 {[%clk 0:02:58]} 13. Nd2 {[%clk 0:02:53]}  Ng4 {[%clk 0:02:48]} 14. Bxc5 {[%clk 0:02:38]}  bxc5 {[%clk 0:02:49]} 15. h3 {[%clk 0:02:24]}  Nh6 {[%clk 0:02:46]} 16. f4 {[%clk 0:02:23]}  f5 {[%clk 0:02:45]} 17. Rae1 {[%clk 0:02:20]}  Ba6 {[%clk 0:02:36]} 18. a4 {[%clk 0:02:18]}  Bxb5 {[%clk 0:02:35]} 19. axb5 {[%clk 0:02:18]}  Qd7 {[%clk 0:02:30]} 20. exf5 {[%clk 0:02:15]}  Nxf5 {[%clk 0:02:29]} 21. Kh2 {[%clk 0:02:12]}  exf4 {[%clk 0:02:24]} 22. Rxf4 {[%clk 0:02:11]}  Be5 {[%clk 0:02:19]} 23. Rxe5 {[%clk 0:01:55]}  dxe5 {[%clk 0:02:18]} 24. Re4 {[%clk 0:01:55]}  Nd4 {[%clk 0:02:17]} 25. Qd1 {[%clk 0:01:54]}  Rae8 {[%clk 0:02:16]} 26. Qe1 {[%clk 0:01:48]}  Qf5 {[%clk 0:02:08]} 27. Nf1 {[%clk 0:01:40]}  Qf2 {[%clk 0:02:05]} 28. Qxf2 {[%clk 0:01:17]}  Rxf2 {[%clk 0:02:06]} 29. Ne3 {[%clk 0:01:09]}  Rxb2 {[%clk 0:01:53]} 30. Ng4 {[%clk 0:01:08]}  Kg7 {[%clk 0:01:50]} 31. h4 {[%clk 0:01:00]}  a4 {[%clk 0:01:49]} 32. Kh3 {[%clk 0:00:56]}  a3 {[%clk 0:01:46]} 33. Re1 {[%clk 0:00:51]}  a2 {[%clk 0:01:45]} 34. Ra1 {[%clk 0:00:44]}  Nb3 {[%clk 0:01:43]} 35. Re1 {[%clk 0:00:42]}  Rb1 {[%clk 0:01:42]} 36. Rxe5 {[%clk 0:00:33]}  Rxe5 {[%clk 0:01:40]} 37. Nxe5 {[%clk 0:00:34]}  a1=Q {[%clk 0:01:40]} 0-1


[Site "https://www.chess.com"]

[Event "Titled Tuesday Blitz May 4 2021"]
[White "Wu, Christopher"]
[Black "Grunberg, Mihai-Lucian"]
[WhiteFideId "2040875"]
[BlackFideId "1204149"]
[WhiteElo "2609"]
[BlackElo "2364"]
[Result "1-0"]
[Round "03"]
[TimeControl "180+1"]
[Date "2021.05.04"]
[WhiteClock "0:01:49"]
[BlackClock "0:02:03"]

1. e4 {[%clk 0:03:00]}  d6 {[%clk 0:02:59]} 2. d4 {[%clk 0:03:00]}  Nf6 {[%clk 0:02:59]} 3. Nc3 {[%clk 0:03:01]}  g6 {[%clk 0:02:59]} 4. Be3 {[%clk 0:03:01]}  c6 {[%clk 0:02:59]} 5. Qd2 {[%clk 0:03:00]}  b5 {[%clk 0:02:59]} 6. f3 {[%clk 0:02:57]}  b4 {[%clk 0:02:58]} 7. Nce2 {[%clk 0:02:57]}  a5 {[%clk 0:02:58]} 8. h4 {[%clk 0:02:50]}  h5 {[%clk 0:02:58]} 9. Nh3 {[%clk 0:02:50]}  Nbd7 {[%clk 0:02:51]} 10. Ng5 {[%clk 0:02:50]}  e5 {[%clk 0:02:51]} 11. O-O-O {[%clk 0:02:47]}  Qc7 {[%clk 0:02:47]} 12. Kb1 {[%clk 0:02:42]}  Nb6 {[%clk 0:02:46]} 13. Nc1 {[%clk 0:02:40]}  Ba6 {[%clk 0:02:43]} 14. Bxa6 {[%clk 0:02:33]}  Rxa6 {[%clk 0:02:42]} 15. f4 {[%clk 0:02:31]}  Be7 {[%clk 0:02:26]} 16. f5 {[%clk 0:02:20]}  O-O {[%clk 0:02:14]} 17. fxg6 {[%clk 0:02:19]}  fxg6 {[%clk 0:02:14]} 18. Ne6 {[%clk 0:02:19]}  Qc8 {[%clk 0:02:08]} 19. Nxf8 {[%clk 0:02:19]}  Bxf8 {[%clk 0:02:07]} 20. dxe5 {[%clk 0:02:10]}  dxe5 {[%clk 0:02:07]} 21. Rhf1 {[%clk 0:02:06]}  Nxe4 {[%clk 0:02:03]} 22. Qd3 {[%clk 0:01:49]} 1-0


[Site "https://www.chess.com"]

[Event "Titled Tuesday Blitz May 4 2021"]
[White "Yavorovsky, Valeriy"]
[Black "Najdin, Danil"]
[WhiteFideId "14121549"]
[BlackFideId "4172426"]
[WhiteElo "2267"]
[BlackElo "2193"]
[Result "1/2-1/2"]
[Round "03"]
[TimeControl "180+1"]
[Date "2021.05.04"]
[WhiteClock "0:00:10"]
[BlackClock "0:00:03"]

1. d4 {[%clk 0:03:00]}  f5 {[%clk 0:02:58]} 2. g3 {[%clk 0:03:00]}  Nf6 {[%clk 0:02:58]} 3. Bg2 {[%clk 0:03:00]}  e6 {[%clk 0:02:58]} 4. Nf3 {[%clk 0:03:01]}  d5 {[%clk 0:02:57]} 5. O-O {[%clk 0:03:01]}  Bd6 {[%clk 0:02:58]} 6. c4 {[%clk 0:03:02]}  c6 {[%clk 0:02:58]} 7. b3 {[%clk 0:03:02]}  Qe7 {[%clk 0:02:58]} 8. Bb2 {[%clk 0:03:02]}  b6 {[%clk 0:02:56]} 9. Qc1 {[%clk 0:03:02]}  O-O {[%clk 0:02:48]} 10. Ba3 {[%clk 0:03:02]}  Nbd7 {[%clk 0:02:46]} 11. Bxd6 {[%clk 0:02:59]}  Qxd6 {[%clk 0:02:46]} 12. Qb2 {[%clk 0:03:00]}  Ba6 {[%clk 0:02:31]} 13. Nbd2 {[%clk 0:02:56]}  Ne4 {[%clk 0:02:27]} 14. Rac1 {[%clk 0:02:55]}  Rac8 {[%clk 0:02:24]} 15. e3 {[%clk 0:02:52]}  c5 {[%clk 0:02:15]} 16. Qa3 {[%clk 0:02:51]}  Bb7 {[%clk 0:01:51]} 17. Rfd1 {[%clk 0:02:38]}  cxd4 {[%clk 0:01:42]} 18. Qxd6 {[%clk 0:02:37]}  Nxd6 {[%clk 0:01:43]} 19. Nxd4 {[%clk 0:02:34]}  e5 {[%clk 0:01:41]} 20. Ne6 {[%clk 0:02:29]}  Rfe8 {[%clk 0:01:06]} 21. Bxd5 {[%clk 0:02:20]}  Bxd5 {[%clk 0:01:00]} 22. cxd5 {[%clk 0:02:20]}  Nf6 {[%clk 0:00:50]} 23. Nc4 {[%clk 0:02:18]}  Nf7 {[%clk 0:00:42]} 24. a4 {[%clk 0:01:45]}  g6 {[%clk 0:00:36]} 25. f4 {[%clk 0:01:35]}  Nxd5 {[%clk 0:00:32]} 26. Rxd5 {[%clk 0:01:32]}  Rxe6 {[%clk 0:00:32]} 27. Rcd1 {[%clk 0:01:29]}  exf4 {[%clk 0:00:32]} 28. exf4 {[%clk 0:01:29]}  Rce8 {[%clk 0:00:31]} 29. R1d2 {[%clk 0:01:24]}  Re2 {[%clk 0:00:30]} 30. Kf1 {[%clk 0:01:15]}  Rxd2 {[%clk 0:00:29]} 31. Rxd2 {[%clk 0:01:15]}  Re7 {[%clk 0:00:29]} 32. Kf2 {[%clk 0:01:07]}  Kg7 {[%clk 0:00:28]} 33. Rd5 {[%clk 0:01:01]}  Kf6 {[%clk 0:00:28]} 34. a5 {[%clk 0:01:00]}  bxa5 {[%clk 0:00:27]} 35. Rxa5 {[%clk 0:00:59]}  Rb7 {[%clk 0:00:25]} 36. Ra6+ {[%clk 0:00:57]}  Ke7 {[%clk 0:00:24]} 37. Na5 {[%clk 0:00:51]}  Rc7 {[%clk 0:00:21]} 38. Rxa7 {[%clk 0:00:48]}  Rxa7 {[%clk 0:00:20]} 39. Nc6+ {[%clk 0:00:48]}  Kd6 {[%clk 0:00:21]} 40. Nxa7 {[%clk 0:00:49]}  Kc5 {[%clk 0:00:22]} 41. Ke3 {[%clk 0:00:42]}  Nd6 {[%clk 0:00:21]} 42. Kd3 {[%clk 0:00:39]}  Kb6 {[%clk 0:00:22]} 43. Kd4 {[%clk 0:00:37]}  Kxa7 {[%clk 0:00:21]} 44. Ke5 {[%clk 0:00:37]}  Ne4 {[%clk 0:00:17]} 45. g4 {[%clk 0:00:33]}  Nc5 {[%clk 0:00:06]} 46. gxf5 {[%clk 0:00:32]}  gxf5 {[%clk 0:00:06]} 47. Kxf5 {[%clk 0:00:30]}  Nxb3 {[%clk 0:00:07]} 48. Kf6 {[%clk 0:00:21]}  Kb7 {[%clk 0:00:07]} 49. Kg7 {[%clk 0:00:21]}  h5 {[%clk 0:00:07]} 50. Kh6 {[%clk 0:00:18]}  h4 {[%clk 0:00:08]} 51. f5 {[%clk 0:00:16]}  Nc5 {[%clk 0:00:05]} 52. f6 {[%clk 0:00:16]}  Kc7 {[%clk 0:00:04]} 53. h3 {[%clk 0:00:13]}  Nd7 {[%clk 0:00:02]} 54. f7 {[%clk 0:00:12]}  Kd6 {[%clk 0:00:02]} 55. Kg5 {[%clk 0:00:11]}  Ke7 {[%clk 0:00:02]} 56. Kxh4 {[%clk 0:00:11]}  Kxf7 {[%clk 0:00:03]} 57. Kg4 {[%clk 0:00:10]} 1/2-1/2


[Site "https://www.chess.com"]

[Event "Titled Tuesday Blitz May 4 2021"]
[White "Zeltsan, Joseph"]
[Black "Sailer, Mike"]
[WhiteFideId "30932980"]
[BlackFideId "2012901"]
[WhiteElo "2195"]
[BlackElo "2109"]
[Result "0-1"]
[Round "03"]
[TimeControl "180+1"]
[Date "2021.05.04"]
[WhiteClock "0:00:15"]
[BlackClock "0:00:07"]

1. e4 {[%clk 0:03:00]}  d5 {[%clk 0:02:59]} 2. exd5 {[%clk 0:03:00]}  Qxd5 {[%clk 0:02:59]} 3. Nc3 {[%clk 0:03:01]}  Qd6 {[%clk 0:02:59]} 4. d4 {[%clk 0:03:01]}  Nf6 {[%clk 0:02:59]} 5. g3 {[%clk 0:03:01]}  c6 {[%clk 0:02:51]} 6. Bg2 {[%clk 0:03:00]}  Bf5 {[%clk 0:02:48]} 7. Nf3 {[%clk 0:03:00]}  e6 {[%clk 0:02:48]} 8. O-O {[%clk 0:03:00]}  Be7 {[%clk 0:02:49]} 9. Bf4 {[%clk 0:03:00]}  Qd8 {[%clk 0:02:49]} 10. Ne5 {[%clk 0:02:53]}  h6 {[%clk 0:02:47]} 11. Rb1 {[%clk 0:02:45]}  a5 {[%clk 0:02:46]} 12. a3 {[%clk 0:02:42]}  O-O {[%clk 0:02:45]} 13. b4 {[%clk 0:02:42]}  axb4 {[%clk 0:02:45]} 14. axb4 {[%clk 0:02:43]}  Ra3 {[%clk 0:02:41]} 15. Ne2 {[%clk 0:02:25]}  Nbd7 {[%clk 0:02:40]} 16. b5 {[%clk 0:02:11]}  Nxe5 {[%clk 0:02:08]} 17. Bxe5 {[%clk 0:02:07]}  Nd5 {[%clk 0:02:00]} 18. bxc6 {[%clk 0:01:13]}  bxc6 {[%clk 0:02:00]} 19. Rb7 {[%clk 0:01:07]}  f6 {[%clk 0:01:35]} 20. Bf4 {[%clk 0:01:00]}  Qa8 {[%clk 0:01:17]} 21. Rd7 {[%clk 0:00:45]}  Bb4 {[%clk 0:01:10]} 22. c4 {[%clk 0:00:39]}  Nc3 {[%clk 0:00:42]} 23. Nxc3 {[%clk 0:00:37]}  Rxc3 {[%clk 0:00:39]} 24. Rc7 {[%clk 0:00:20]}  Rxc4 {[%clk 0:00:28]} 25. Qb3 {[%clk 0:00:20]}  Qa6 {[%clk 0:00:23]} 26. Ra7 {[%clk 0:00:19]}  Qxa7 {[%clk 0:00:15]} 27. Qxc4 {[%clk 0:00:19]}  c5 {[%clk 0:00:13]} 28. d5 {[%clk 0:00:18]}  Re8 {[%clk 0:00:08]} 29. d6 {[%clk 0:00:18]}  Kh8 {[%clk 0:00:06]} 30. Rd1 {[%clk 0:00:19]}  e5 {[%clk 0:00:07]} 31. Be3 {[%clk 0:00:19]}  Rd8 {[%clk 0:00:06]} 32. Bc6 {[%clk 0:00:19]}  Bd7 {[%clk 0:00:06]} 33. Bg2 {[%clk 0:00:17]}  Bc6 {[%clk 0:00:05]} 34. Qxb4 {[%clk 0:00:18]}  Bxg2 {[%clk 0:00:05]} 35. Kxg2 {[%clk 0:00:17]}  Qa8+ {[%clk 0:00:06]} 36. f3 {[%clk 0:00:16]}  cxb4 {[%clk 0:00:06]} 37. d7 {[%clk 0:00:16]}  Qb7 {[%clk 0:00:06]} 38. Bb6 {[%clk 0:00:15]}  Rxd7 {[%clk 0:00:07]} 0-1


[Site "https://www.chess.com"]

[Event "Titled Tuesday Blitz May 4 2021"]
[White "elohunter1999"]
[Black "Bures, Vit"]
[BlackFideId "309052"]
[WhiteElo "2495"]
[BlackElo "2131"]
[Result "1-0"]
[Round "03"]
[TimeControl "180+1"]
[Date "2021.05.04"]
[WhiteClock "0:00:35"]
[BlackClock "0:00:01"]

1. d4 {[%clk 0:03:00]}  d5 {[%clk 0:02:59]} 2. c4 {[%clk 0:03:00]}  c6 {[%clk 0:02:58]} 3. Nc3 {[%clk 0:02:59]}  Nf6 {[%clk 0:02:58]} 4. e3 {[%clk 0:02:58]}  e6 {[%clk 0:02:58]} 5. Nf3 {[%clk 0:02:57]}  Nbd7 {[%clk 0:02:58]} 6. Bd3 {[%clk 0:02:53]}  dxc4 {[%clk 0:02:58]} 7. Bxc4 {[%clk 0:02:53]}  b5 {[%clk 0:02:58]} 8. Bd3 {[%clk 0:02:53]}  Bd6 {[%clk 0:02:58]} 9. O-O {[%clk 0:02:53]}  O-O {[%clk 0:02:58]} 10. e4 {[%clk 0:02:34]}  e5 {[%clk 0:02:58]} 11. dxe5 {[%clk 0:02:29]}  Nxe5 {[%clk 0:02:57]} 12. Nxe5 {[%clk 0:02:29]}  Bxe5 {[%clk 0:02:58]} 13. h3 {[%clk 0:02:29]}  Re8 {[%clk 0:02:53]} 14. Be3 {[%clk 0:02:21]}  b4 {[%clk 0:02:19]} 15. Na4 {[%clk 0:02:18]}  a5 {[%clk 0:02:18]} 16. Rc1 {[%clk 0:02:00]}  Ba6 {[%clk 0:01:45]} 17. Bxa6 {[%clk 0:01:57]}  Rxa6 {[%clk 0:01:44]} 18. Qxd8 {[%clk 0:01:33]}  Rxd8 {[%clk 0:01:44]} 19. f3 {[%clk 0:01:34]}  Bd4 {[%clk 0:01:16]} 20. Bxd4 {[%clk 0:01:31]}  Rxd4 {[%clk 0:01:17]} 21. Rfd1 {[%clk 0:01:31]}  Rxd1+ {[%clk 0:01:09]} 22. Rxd1 {[%clk 0:01:32]}  Kf8 {[%clk 0:01:09]} 23. Nc5 {[%clk 0:01:22]}  Ra8 {[%clk 0:01:06]} 24. g4 {[%clk 0:01:18]}  h6 {[%clk 0:00:58]} 25. h4 {[%clk 0:01:07]}  g5 {[%clk 0:00:33]} 26. Rd6 {[%clk 0:01:01]}  Ke7 {[%clk 0:00:28]} 27. e5 {[%clk 0:00:54]}  Nd5 {[%clk 0:00:18]} 28. Rd7+ {[%clk 0:00:45]}  Ke8 {[%clk 0:00:18]} 29. hxg5 {[%clk 0:00:40]}  hxg5 {[%clk 0:00:19]} 30. e6 {[%clk 0:00:40]}  fxe6 {[%clk 0:00:15]} 31. Rh7 {[%clk 0:00:41]}  Rd8 {[%clk 0:00:03]} 32. Rh8+ {[%clk 0:00:34]}  Ke7 {[%clk 0:00:01]} 33. Rxd8 {[%clk 0:00:34]}  Kxd8 {[%clk 0:00:01]} 34. Nxe6+ {[%clk 0:00:35]} 1-0


[Site "https://www.chess.com"]

[Event "Titled Tuesday Blitz May 4 2021"]
[White "mattcolins2025"]
[Black "Matveeva, Olga"]
[BlackFideId "24107018"]
[WhiteElo "2471"]
[BlackElo "2108"]
[Result "0-1"]
[Round "03"]
[TimeControl "180+1"]
[Date "2021.05.04"]
[WhiteClock "0:00:23"]
[BlackClock "0:00:05"]

1. d4 {[%clk 0:03:00]}  Nf6 {[%clk 0:02:57]} 2. c4 {[%clk 0:03:00]}  e6 {[%clk 0:02:57]} 3. Nc3 {[%clk 0:02:56]}  Bb4 {[%clk 0:02:57]} 4. Qc2 {[%clk 0:02:56]}  d5 {[%clk 0:02:55]} 5. Bg5 {[%clk 0:02:54]}  h6 {[%clk 0:02:51]} 6. Bxf6 {[%clk 0:02:54]}  Qxf6 {[%clk 0:02:50]} 7. Nf3 {[%clk 0:02:55]}  O-O {[%clk 0:02:46]} 8. e3 {[%clk 0:02:54]}  c5 {[%clk 0:02:40]} 9. dxc5 {[%clk 0:02:51]}  Bxc3+ {[%clk 0:02:28]} 10. Qxc3 {[%clk 0:02:50]}  Qxc3+ {[%clk 0:02:27]} 11. bxc3 {[%clk 0:02:51]}  dxc4 {[%clk 0:02:20]} 12. Bxc4 {[%clk 0:02:50]}  Nd7 {[%clk 0:02:20]} 13. c6 {[%clk 0:02:49]}  bxc6 {[%clk 0:02:20]} 14. O-O {[%clk 0:02:49]}  Rb8 {[%clk 0:02:09]} 15. Nd4 {[%clk 0:02:44]}  Bb7 {[%clk 0:01:53]} 16. Rfd1 {[%clk 0:02:38]}  Ne5 {[%clk 0:01:52]} 17. Bb3 {[%clk 0:02:37]}  c5 {[%clk 0:01:50]} 18. Nb5 {[%clk 0:02:34]}  c4 {[%clk 0:01:46]} 19. Bc2 {[%clk 0:02:32]}  Bd5 {[%clk 0:01:13]} 20. Rab1 {[%clk 0:02:20]}  a6 {[%clk 0:01:00]} 21. Nc7 {[%clk 0:02:18]}  Bb7 {[%clk 0:00:38]} 22. Rb6 {[%clk 0:02:08]}  Rfc8 {[%clk 0:00:29]} 23. Nxa6 {[%clk 0:01:57]}  Bxa6 {[%clk 0:00:30]} 24. Rxa6 {[%clk 0:01:58]}  Rb2 {[%clk 0:00:29]} 25. Be4 {[%clk 0:01:57]}  Nd3 {[%clk 0:00:27]} 26. f4 {[%clk 0:01:52]}  Nf2 {[%clk 0:00:21]} 27. Rc6 {[%clk 0:01:38]}  Rcb8 {[%clk 0:00:18]} 28. Rd4 {[%clk 0:01:35]}  Ng4 {[%clk 0:00:16]} 29. g3 {[%clk 0:01:27]}  Nxe3 {[%clk 0:00:15]} 30. Rcd6 {[%clk 0:01:26]}  g6 {[%clk 0:00:12]} 31. Rd8+ {[%clk 0:01:25]}  Rxd8 {[%clk 0:00:12]} 32. Rxd8+ {[%clk 0:01:25]}  Kg7 {[%clk 0:00:13]} 33. a4 {[%clk 0:01:15]}  Ra2 {[%clk 0:00:13]} 34. Ra8 {[%clk 0:01:13]}  Kf6 {[%clk 0:00:10]} 35. a5 {[%clk 0:01:13]}  Nd1 {[%clk 0:00:10]} 36. a6 {[%clk 0:01:09]}  Nxc3 {[%clk 0:00:10]} 37. Bf3 {[%clk 0:01:10]}  Nd5 {[%clk 0:00:09]} 38. Rc8 {[%clk 0:00:40]}  Ne3 {[%clk 0:00:08]} 39. a7 {[%clk 0:00:32]}  Rxa7 {[%clk 0:00:07]} 40. Kf2 {[%clk 0:00:31]}  Nd5 {[%clk 0:00:07]} 41. Rxc4 {[%clk 0:00:31]}  Ra2+ {[%clk 0:00:06]} 42. Be2 {[%clk 0:00:28]}  g5 {[%clk 0:00:05]} 43. fxg5+ {[%clk 0:00:28]}  hxg5 {[%clk 0:00:05]} 44. Kf3 {[%clk 0:00:27]}  Kg6 {[%clk 0:00:05]} 45. Bd3+ {[%clk 0:00:24]}  f5 {[%clk 0:00:05]} 46. Rc6 {[%clk 0:00:23]}  g4# {[%clk 0:00:05]} 0-1


[Site "https://www.chess.com"]

[Event "Titled Tuesday Blitz May 4 2021"]
[White "parintele_chess"]
[Black "Mohandesi, Shahin"]
[BlackFideId "12501247"]
[WhiteElo "2265"]
[BlackElo "1993"]
[Result "1-0"]
[Round "03"]
[TimeControl "180+1"]
[Date "2021.05.04"]
[WhiteClock "0:01:24"]
[BlackClock "0:01:02"]

1. g3 {[%clk 0:03:00]}  e5 {[%clk 0:02:54]} 2. Bg2 {[%clk 0:03:01]}  d5 {[%clk 0:02:54]} 3. f3 {[%clk 0:03:00]}  h5 {[%clk 0:02:53]} 4. Nh3 {[%clk 0:02:59]}  h4 {[%clk 0:02:52]} 5. g4 {[%clk 0:02:59]}  Nc6 {[%clk 0:02:49]} 6. Nf2 {[%clk 0:02:58]}  f5 {[%clk 0:02:49]} 7. h3 {[%clk 0:02:58]}  Nf6 {[%clk 0:02:46]} 8. O-O {[%clk 0:02:53]}  Bd6 {[%clk 0:02:45]} 9. e3 {[%clk 0:02:49]}  Qe7 {[%clk 0:02:44]} 10. Nc3 {[%clk 0:02:47]}  Be6 {[%clk 0:02:36]} 11. d3 {[%clk 0:02:39]}  d4 {[%clk 0:02:32]} 12. Nb5 {[%clk 0:02:32]}  Bc5 {[%clk 0:02:32]} 13. e4 {[%clk 0:02:30]}  fxg4 {[%clk 0:02:27]} 14. fxg4 {[%clk 0:02:29]}  a6 {[%clk 0:02:25]} 15. Na3 {[%clk 0:02:29]}  O-O-O {[%clk 0:02:24]} 16. Nc4 {[%clk 0:02:16]}  Bxc4 {[%clk 0:02:21]} 17. dxc4 {[%clk 0:02:17]}  Qe6 {[%clk 0:02:12]} 18. Qe2 {[%clk 0:02:10]}  d3 {[%clk 0:02:06]} 19. cxd3 {[%clk 0:02:10]}  Nd4 {[%clk 0:02:07]} 20. Qd1 {[%clk 0:02:07]}  Rd7 {[%clk 0:02:01]} 21. a3 {[%clk 0:02:04]}  Ba7 {[%clk 0:01:52]} 22. Be3 {[%clk 0:02:03]}  Rhd8 {[%clk 0:01:51]} 23. b4 {[%clk 0:01:59]}  Nc2 {[%clk 0:01:36]} 24. Bxa7 {[%clk 0:01:50]}  Nxa1 {[%clk 0:01:35]} 25. Be3 {[%clk 0:01:47]}  Qc6 {[%clk 0:01:20]} 26. Qxa1 {[%clk 0:01:45]}  Qa4 {[%clk 0:01:21]} 27. Qxe5 {[%clk 0:01:42]}  Qxa3 {[%clk 0:01:20]} 28. Qc5 {[%clk 0:01:32]}  b6 {[%clk 0:01:02]} 29. Qc6 {[%clk 0:01:30]}  Kb8 {[%clk 0:01:02]} 30. e5 {[%clk 0:01:24]} 1-0


[Site "https://www.chess.com"]

[Event "Titled Tuesday Blitz May 4 2021"]
[White "serhanberat_ozdemir"]
[Black "Mitra, Roman C"]
[BlackFideId "419540"]
[WhiteElo "2604"]
[BlackElo "2174"]
[Result "1-0"]
[Round "03"]
[TimeControl "180+1"]
[Date "2021.05.04"]
[WhiteClock "0:00:19"]
[BlackClock "0:00:33"]

1. e4 {[%clk 0:03:00]}  c5 {[%clk 0:02:57]} 2. Nf3 {[%clk 0:03:01]}  d6 {[%clk 0:02:53]} 3. d4 {[%clk 0:03:01]}  cxd4 {[%clk 0:02:54]} 4. Nxd4 {[%clk 0:03:02]}  Nf6 {[%clk 0:02:54]} 5. Nc3 {[%clk 0:03:02]}  a6 {[%clk 0:02:54]} 6. f3 {[%clk 0:03:03]}  e5 {[%clk 0:02:53]} 7. Nb3 {[%clk 0:03:04]}  Be6 {[%clk 0:02:53]} 8. Be3 {[%clk 0:03:04]}  Be7 {[%clk 0:02:53]} 9. Qd2 {[%clk 0:03:05]}  O-O {[%clk 0:02:48]} 10. O-O-O {[%clk 0:03:05]}  a5 {[%clk 0:02:49]} 11. Bb5 {[%clk 0:03:04]}  Nc6 {[%clk 0:02:46]} 12. Kb1 {[%clk 0:02:55]}  Ne8 {[%clk 0:02:43]} 13. h4 {[%clk 0:02:42]}  Nc7 {[%clk 0:02:42]} 14. Bb6 {[%clk 0:02:41]}  Qc8 {[%clk 0:02:42]} 15. Bxc7 {[%clk 0:02:36]}  Qxc7 {[%clk 0:02:42]} 16. g4 {[%clk 0:02:28]}  Na7 {[%clk 0:02:41]} 17. a4 {[%clk 0:02:19]}  Bc4 {[%clk 0:02:33]} 18. Bxc4 {[%clk 0:02:08]}  Qxc4 {[%clk 0:02:34]} 19. Nxa5 {[%clk 0:02:03]}  Qc8 {[%clk 0:02:25]} 20. Nd5 {[%clk 0:01:58]}  Bd8 {[%clk 0:02:24]} 21. Nb3 {[%clk 0:01:54]}  Nc6 {[%clk 0:02:22]} 22. Nc3 {[%clk 0:01:47]}  Be7 {[%clk 0:02:19]} 23. g5 {[%clk 0:01:42]}  Rd8 {[%clk 0:02:10]} 24. h5 {[%clk 0:01:32]}  Qe6 {[%clk 0:02:04]} 25. Nd5 {[%clk 0:01:29]}  Rxa4 {[%clk 0:01:52]} 26. Rdg1 {[%clk 0:01:29]}  Rda8 {[%clk 0:01:37]} 27. c3 {[%clk 0:01:26]}  Na5 {[%clk 0:01:21]} 28. Nxa5 {[%clk 0:01:08]}  R8xa5 {[%clk 0:01:22]} 29. g6 {[%clk 0:01:05]}  fxg6 {[%clk 0:01:20]} 30. hxg6 {[%clk 0:01:05]}  h6 {[%clk 0:01:18]} 31. Kc2 {[%clk 0:01:04]}  Bf8 {[%clk 0:00:55]} 32. Qd3 {[%clk 0:00:41]}  Qe8 {[%clk 0:00:52]} 33. Nb6 {[%clk 0:00:30]}  Ra2 {[%clk 0:00:48]} 34. Qc4+ {[%clk 0:00:31]}  Kh8 {[%clk 0:00:46]} 35. Nd5 {[%clk 0:00:21]}  Rb5 {[%clk 0:00:41]} 36. Qxa2 {[%clk 0:00:19]}  Qc6 {[%clk 0:00:33]} 37. Qa8 {[%clk 0:00:19]} 1-0


[Site "https://www.chess.com"]

[Event "Titled Tuesday Blitz May 4 2021"]
[White "zmeeed67"]
[Black "Schut, Lisa"]
[BlackFideId "1019481"]
[WhiteElo "2552"]
[BlackElo "2234"]
[Result "0-1"]
[Round "03"]
[TimeControl "180+1"]
[Date "2021.05.04"]
[WhiteClock "0:00:04"]
[BlackClock "0:00:20"]

1. d4 {[%clk 0:03:00]}  Nf6 {[%clk 0:02:59]} 2. c4 {[%clk 0:03:01]}  g6 {[%clk 0:02:59]} 3. Nc3 {[%clk 0:03:00]}  d5 {[%clk 0:03:00]} 4. Bf4 {[%clk 0:03:01]}  Bg7 {[%clk 0:02:58]} 5. e3 {[%clk 0:03:01]}  c5 {[%clk 0:02:57]} 6. dxc5 {[%clk 0:03:02]}  Qa5 {[%clk 0:02:55]} 7. Rc1 {[%clk 0:03:02]}  dxc4 {[%clk 0:02:53]} 8. Bxc4 {[%clk 0:03:03]}  Qxc5 {[%clk 0:02:53]} 9. Bb3 {[%clk 0:03:03]}  Qa5 {[%clk 0:02:51]} 10. Nf3 {[%clk 0:03:02]}  Nc6 {[%clk 0:02:49]} 11. O-O {[%clk 0:03:01]}  O-O {[%clk 0:02:50]} 12. h3 {[%clk 0:02:59]}  Bf5 {[%clk 0:02:48]} 13. Qe2 {[%clk 0:02:59]}  Rad8 {[%clk 0:02:44]} 14. e4 {[%clk 0:02:50]}  Bc8 {[%clk 0:02:38]} 15. Nb5 {[%clk 0:02:18]}  a6 {[%clk 0:02:02]} 16. Nc3 {[%clk 0:02:12]}  Nd4 {[%clk 0:01:48]} 17. Nxd4 {[%clk 0:02:11]}  Rxd4 {[%clk 0:01:48]} 18. Be3 {[%clk 0:02:06]}  Rdd8 {[%clk 0:01:39]} 19. Rfe1 {[%clk 0:01:54]}  Bd7 {[%clk 0:01:35]} 20. Nd5 {[%clk 0:01:34]}  Nxd5 {[%clk 0:01:32]} 21. Bxd5 {[%clk 0:01:31]}  Bb5 {[%clk 0:01:30]} 22. Qc2 {[%clk 0:01:23]}  e6 {[%clk 0:01:28]} 23. b4 {[%clk 0:01:01]}  Qxb4 {[%clk 0:01:09]} 24. Bc5 {[%clk 0:01:01]}  Qa5 {[%clk 0:00:59]} 25. Bxf8 {[%clk 0:01:00]}  Bxf8 {[%clk 0:01:00]} 26. Bxb7 {[%clk 0:00:46]}  Rd2 {[%clk 0:00:51]} 27. Qc3 {[%clk 0:00:30]}  Bb4 {[%clk 0:00:50]} 28. Qf6 {[%clk 0:00:22]}  Qb6 {[%clk 0:00:36]} 29. Rc8+ {[%clk 0:00:15]}  Bf8 {[%clk 0:00:35]} 30. Ba8 {[%clk 0:00:05]}  Bd7 {[%clk 0:00:25]} 31. Rd8 {[%clk 0:00:04]}  Rxf2 {[%clk 0:00:21]} 32. Qxf2 {[%clk 0:00:03]}  Qxd8 {[%clk 0:00:21]} 33. Bb7 {[%clk 0:00:04]}  Qc7 {[%clk 0:00:20]} 34. Rb1 {[%clk 0:00:03]}  Bc5 {[%clk 0:00:20]} 35. Kf1 {[%clk 0:00:03]}  Bxf2 {[%clk 0:00:20]} 36. Kxf2 {[%clk 0:00:04]}  Qc2+ {[%clk 0:00:20]} 0-1


[Site "https://www.chess.com"]